[Event "2026 European Womens Championship"]
[Site "Batumi, GE"]
[Date "2026.05.29"]
[Round "5"]
[White "Badelka, Olga"]
[Black "Rodshtein, Tereza"]
[Result "1-0"]
[Board "66"]
[TimeControl "5400+30"]
[WhiteFideId "13509926"]
[BlackFideId "325449"]
[WhiteElo "2392"]
[BlackElo "2218"]
[WhiteTitle "IM"]
[BlackTitle "WGM"]
[WhiteClock "0:26:04"]
[BlackClock "0:35:35"]
[Variant "Standard"]

1. d4 {[%clk 1:30:56]}  Nf6 {[%clk 1:30:44]} 2. Bf4 {[%clk 1:29:55]}  g6 {[%clk 1:27:53]} 3. Nc3 {[%clk 1:27:29]}  Bg7 {[%clk 1:22:00]}
4. e4 {[%clk 1:27:38]}  d6 {[%clk 1:16:57]} 5. Qd2 {[%clk 1:27:07]}  a6 {[%clk 1:12:57]} 6. Nf3 {[%clk 1:19:26]}  b5 {[%clk 1:10:38]}
7. Bh6 {[%clk 1:14:52]}  Bxh6 {[%clk 1:09:37]} 8. Qxh6 {[%clk 1:15:17]}  b4 {[%clk 1:02:26]} 9. Nd5 {[%clk 1:15:36]}  Nxd5 {[%clk 1:01:10]}
10. exd5 {[%clk 1:16:01]}  Nd7 {[%clk 1:01:24]} 11. Qg7 {[%clk 1:04:21]}  Rf8 {[%clk 1:01:43]} 12. O-O-O {[%clk 1:03:52]}  Bb7 {[%clk 0:54:20]}
13. Ng5 {[%clk 1:02:02]}  Nf6 {[%clk 0:53:14]} 14. Re1 {[%clk 0:59:32]}  Nh5 {[%clk 0:50:48]} 15. Qh6 {[%clk 0:55:30]}  Bxd5 {[%clk 0:48:47]}
16. Nxh7 {[%clk 0:55:05]}  Rg8 {[%clk 0:48:48]} 17. g4 {[%clk 0:44:58]}  Bxh1 {[%clk 0:49:01]} 18. gxh5 {[%clk 0:45:23]}  Kd7 {[%clk 0:38:49]}
19. Bh3+ {[%clk 0:45:43]}  e6 {[%clk 0:39:13]} 20. Rxh1 {[%clk 0:36:16]}  Qh4 {[%clk 0:39:28]} 21. Qe3 {[%clk 0:23:14]}  gxh5 {[%clk 0:36:42]}
22. d5 {[%clk 0:22:57]}  Rae8 {[%clk 0:32:20]} 23. Re1 {[%clk 0:19:00]}  Kd8 {[%clk 0:27:56]} 24. dxe6 {[%clk 0:18:41]}  fxe6 {[%clk 0:28:20]}
25. Qf3 {[%clk 0:13:27]}  Rg6 {[%clk 0:24:16]} 26. Bf5 {[%clk 0:09:11]}  Rgg8 {[%clk 0:17:58]} 27. Bd3 {[%clk 0:07:16]}  Rg7 {[%clk 0:16:35]}
28. Nf6 {[%clk 0:01:22]}  Rf8 {[%clk 0:13:56]} 29. Rxe6 {[%clk 0:01:31]}  Qg5+ {[%clk 0:12:35]} 30. Kd1 {[%clk 0:00:50]}  Qg4 {[%clk 0:12:59]}
31. Qxg4 {[%clk 0:00:52]}  hxg4 {[%clk 0:13:25]} 32. Ke1 {[%clk 0:00:42]}  Kc8 {[%clk 0:09:44]} 33. Bxa6+ {[%clk 0:00:50]}  Kb8 {[%clk 0:10:12]}
34. Be2 {[%clk 0:00:39]}  Kb7 {[%clk 0:09:01]} 35. Nxg4 {[%clk 0:01:02]}  Kb6 {[%clk 0:09:22]} 36. a3 {[%clk 0:00:56]}  bxa3 {[%clk 0:08:50]}
37. bxa3 {[%clk 0:01:23]}  Ra8 {[%clk 0:09:16]} 38. Re3 {[%clk 0:01:45]}  Ra4 {[%clk 0:09:42]} 39. h3 {[%clk 0:01:37]}  c5 {[%clk 0:09:14]}
40. Rb3+ {[%clk 0:01:16]}  Kc7 {[%clk 0:09:42]} 41. Bf3 {[%clk 0:00:57]}  Rg8 {[%clk 0:09:22]} 42. Ne3 {[%clk 0:30:12]}  Rg1+ {[%clk 0:39:05]}
43. Ke2 {[%clk 0:30:23]}  Kd7 {[%clk 0:39:29]} 44. Nd5 {[%clk 0:29:00]}  Rd4 {[%clk 0:38:18]} 45. Rd3 {[%clk 0:27:42]}  Rh4 {[%clk 0:38:04]}
46. Ne3 {[%clk 0:27:39]}  Ra1 {[%clk 0:35:34]} 47. Bg4+ {[%clk 0:26:31]}  Kc7 {[%clk 0:35:35]} 48. Nf5 {[%clk 0:26:04]} 1-0

[Event "2026 European Womens Championship"]
[Site "Batumi, GE"]
[Date "2026.05.29"]
[Round "5"]
[White "Piddubna, Bozhena"]
[Black "Javakhishvili, Lela"]
[Result "1/2-1/2"]
[Board "67"]
[TimeControl "5400+30"]
[WhiteFideId "34109293"]
[BlackFideId "13601458"]
[WhiteElo "2235"]
[BlackElo "2442"]
[WhiteTitle "WIM"]
[BlackTitle "IM"]
[WhiteClock "0:02:31"]
[BlackClock "0:07:00"]
[Variant "Standard"]

1. e4 {[%clk 1:29:23]}  c5 {[%clk 1:28:28]} 2. c3 {[%clk 1:29:25]}  Nf6 {[%clk 1:28:22]} 3. e5 {[%clk 1:28:43]}  Nd5 {[%clk 1:28:49]}
4. Nf3 {[%clk 1:28:50]}  e6 {[%clk 1:28:34]} 5. d4 {[%clk 1:28:18]}  cxd4 {[%clk 1:28:57]} 6. cxd4 {[%clk 1:28:44]}  d6 {[%clk 1:29:23]}
7. Bc4 {[%clk 1:28:04]}  Be7 {[%clk 1:29:17]} 8. O-O {[%clk 1:27:39]}  O-O {[%clk 1:29:37]} 9. Qe2 {[%clk 1:27:26]}  a6 {[%clk 1:29:54]}
10. Rd1 {[%clk 1:20:36]}  b5 {[%clk 1:23:00]} 11. Bd3 {[%clk 1:19:59]}  Nd7 {[%clk 1:21:34]} 12. Nc3 {[%clk 1:12:07]}  Nxc3 {[%clk 1:10:20]}
13. bxc3 {[%clk 1:12:31]}  Bb7 {[%clk 1:09:08]} 14. a4 {[%clk 1:04:03]}  bxa4 {[%clk 1:01:24]} 15. Rxa4 {[%clk 1:01:43]}  Qc7 {[%clk 0:57:12]}
16. Rc4 {[%clk 0:39:39]}  Qa5 {[%clk 0:44:33]} 17. Rb4 {[%clk 0:19:43]}  Bd5 {[%clk 0:26:12]} 18. Rb1 {[%clk 0:15:46]}  dxe5 {[%clk 0:25:37]}
19. Nxe5 {[%clk 0:11:49]}  Nxe5 {[%clk 0:25:52]} 20. dxe5 {[%clk 0:11:55]}  Qxc3 {[%clk 0:14:16]} 21. Bd2 {[%clk 0:11:36]}  Qc6 {[%clk 0:11:41]}
22. Rdc1 {[%clk 0:11:47]}  Qd7 {[%clk 0:11:47]} 23. Bxa6 {[%clk 0:09:14]}  Rfb8 {[%clk 0:11:39]} 24. Bb5 {[%clk 0:05:51]}  Qd8 {[%clk 0:11:49]}
25. Be3 {[%clk 0:02:17]}  Be4 {[%clk 0:07:24]} 26. Bb6 {[%clk 0:01:58]}  Rxb6 {[%clk 0:06:19]} 27. Qxe4 {[%clk 0:02:21]}  Rab8 {[%clk 0:05:58]}
28. Bd3 {[%clk 0:02:42]}  g6 {[%clk 0:06:23]} 29. Rxb6 {[%clk 0:02:05]}  Qxb6 {[%clk 0:06:38]} 30. Rb1 {[%clk 0:02:17]}  Qd8 {[%clk 0:07:00]}
31. Rxb8 {[%clk 0:02:31]} 1/2-1/2

[Event "2026 European Womens Championship"]
[Site "Batumi, GE"]
[Date "2026.05.29"]
[Round "5"]
[White "Buksa, Nataliya"]
[Black "Szczotka, Klara"]
[Result "1-0"]
[Board "68"]
[TimeControl "5400+30"]
[WhiteFideId "14123622"]
[BlackFideId "21858845"]
[WhiteElo "2392"]
[BlackElo "2241"]
[WhiteTitle "IM"]
[BlackTitle "WFM"]
[WhiteClock "0:09:21"]
[BlackClock "0:00:57"]
[Variant "Standard"]

1. e4 {[%clk 1:27:01]}  c6 {[%clk 1:24:50]} 2. d4 {[%clk 1:27:21]}  d5 {[%clk 1:23:17]} 3. f3 {[%clk 1:27:46]}  g6 {[%clk 1:22:42]}
4. Be3 {[%clk 1:23:59]}  Bg7 {[%clk 1:22:17]} 5. Nc3 {[%clk 1:24:22]}  Qb6 {[%clk 1:20:00]} 6. Qd2 {[%clk 1:19:53]}  Qxb2 {[%clk 1:15:32]}
7. Rb1 {[%clk 1:20:01]}  Qa3 {[%clk 1:15:54]} 8. exd5 {[%clk 1:17:20]}  Nf6 {[%clk 1:15:19]} 9. Bc4 {[%clk 1:07:28]}  O-O {[%clk 1:12:00]}
10. Nge2 {[%clk 1:06:42]}  Nbd7 {[%clk 1:08:23]} 11. dxc6 {[%clk 1:00:57]}  bxc6 {[%clk 1:08:41]} 12. O-O {[%clk 1:01:17]}  Nb6 {[%clk 1:07:54]}
13. Bd3 {[%clk 0:57:52]}  Rd8 {[%clk 1:04:35]} 14. Rb3 {[%clk 0:47:59]}  Qa5 {[%clk 1:01:41]} 15. Bf2 {[%clk 0:38:58]}  Be6 {[%clk 0:58:52]}
16. Rbb1 {[%clk 0:39:25]}  Nc4 {[%clk 0:55:49]} 17. Qc1 {[%clk 0:39:23]}  Nd7 {[%clk 0:36:50]} 18. Rd1 {[%clk 0:38:14]}  Ndb6 {[%clk 0:34:08]}
19. Ne4 {[%clk 0:32:48]}  Na4 {[%clk 0:17:24]} 20. Rb7 {[%clk 0:23:27]}  Rdb8 {[%clk 0:07:20]} 21. Rxe7 {[%clk 0:23:23]}  Bd5 {[%clk 0:07:36]}
22. Bh4 {[%clk 0:19:52]}  Nab2 {[%clk 0:06:30]} 23. Rf1 {[%clk 0:18:44]}  Nxd3 {[%clk 0:04:46]} 24. cxd3 {[%clk 0:19:12]}  Nb2 {[%clk 0:04:21]}
25. Qe3 {[%clk 0:18:43]}  Qb5 {[%clk 0:01:20]} 26. Nf4 {[%clk 0:17:07]}  Bxa2 {[%clk 0:01:18]} 27. Re1 {[%clk 0:13:58]}  Rf8 {[%clk 0:00:49]}
28. Nf6+ {[%clk 0:12:21]}  Kh8 {[%clk 0:00:51]} 29. Nd7 {[%clk 0:12:18]}  Rg8 {[%clk 0:00:43]} 30. Bf6 {[%clk 0:12:33]}  Qb4 {[%clk 0:00:33]}
31. Qe5 {[%clk 0:10:28]}  Be6 {[%clk 0:00:33]} 32. Bxg7+ {[%clk 0:08:55]}  Rxg7 {[%clk 0:00:57]} 33. Nxe6 {[%clk 0:09:21]} 1-0

[Event "2026 European Womens Championship"]
[Site "Batumi, GE"]
[Date "2026.05.29"]
[Round "5"]
[White "Maltsevskaya, Aleksandra"]
[Black "Rapport, Jovana"]
[Result "1/2-1/2"]
[Board "69"]
[TimeControl "5400+30"]
[WhiteFideId "24174041"]
[BlackFideId "937266"]
[WhiteElo "2390"]
[BlackElo "2235"]
[WhiteTitle "IM"]
[BlackTitle "WGM"]
[WhiteClock "0:02:39"]
[BlackClock "0:06:20"]
[Variant "Standard"]

1. d4 {[%clk 1:30:56]}  Nf6 {[%clk 1:29:00]} 2. c4 {[%clk 1:31:01]}  g6 {[%clk 1:29:14]} 3. Nf3 {[%clk 1:30:59]}  Bg7 {[%clk 1:29:13]}
4. g3 {[%clk 1:31:07]}  c6 {[%clk 1:29:25]} 5. Bg2 {[%clk 1:30:18]}  d5 {[%clk 1:29:45]} 6. O-O {[%clk 1:28:58]}  O-O {[%clk 1:30:10]}
7. b3 {[%clk 1:29:13]}  Ne4 {[%clk 1:26:45]} 8. Bb2 {[%clk 1:28:19]}  Nd7 {[%clk 1:25:12]} 9. Nc3 {[%clk 1:22:41]}  Nxc3 {[%clk 1:19:26]}
10. Bxc3 {[%clk 1:23:03]}  Nf6 {[%clk 1:19:40]} 11. Nd2 {[%clk 1:20:18]}  Bf5 {[%clk 1:19:38]} 12. Re1 {[%clk 1:17:58]}  Qd7 {[%clk 1:16:16]}
13. a4 {[%clk 0:54:13]}  Rad8 {[%clk 1:14:01]} 14. e3 {[%clk 0:51:28]}  Rfe8 {[%clk 1:11:28]} 15. c5 {[%clk 0:45:33]}  Ne4 {[%clk 1:07:54]}
16. Nxe4 {[%clk 0:45:43]}  Bxe4 {[%clk 1:02:21]} 17. f3 {[%clk 0:41:06]}  Bf5 {[%clk 1:02:47]} 18. b4 {[%clk 0:39:35]}  h5 {[%clk 1:02:47]}
19. Ra2 {[%clk 0:37:56]}  Bh3 {[%clk 0:51:11]} 20. f4 {[%clk 0:31:18]}  Bg4 {[%clk 0:49:41]} 21. Qb3 {[%clk 0:31:29]}  h4 {[%clk 0:49:02]}
22. b5 {[%clk 0:29:31]}  hxg3 {[%clk 0:46:39]} 23. hxg3 {[%clk 0:29:53]}  Bf6 {[%clk 0:47:05]} 24. Rb2 {[%clk 0:25:02]}  Kg7 {[%clk 0:46:11]}
25. a5 {[%clk 0:24:26]}  Rh8 {[%clk 0:39:52]} 26. a6 {[%clk 0:23:42]}  bxa6 {[%clk 0:40:17]} 27. bxc6 {[%clk 0:20:58]}  Qxc6 {[%clk 0:39:05]}
28. e4 {[%clk 0:11:45]}  dxe4 {[%clk 0:36:05]} 29. Bxe4 {[%clk 0:11:20]}  Qc7 {[%clk 0:36:27]} 30. Qc4 {[%clk 0:04:59]}  Bc8 {[%clk 0:22:38]}
31. d5 {[%clk 0:04:03]}  Bxc3 {[%clk 0:19:49]} 32. Qxc3+ {[%clk 0:04:28]}  Kg8 {[%clk 0:20:08]} 33. Bf3 {[%clk 0:01:13]}  Bf5 {[%clk 0:12:15]}
34. c6 {[%clk 0:00:38]}  Bc8 {[%clk 0:06:42]} 35. Rbe2 {[%clk 0:00:36]}  Qb6+ {[%clk 0:07:00]} 36. Qe3 {[%clk 0:00:34]}  e6 {[%clk 0:06:39]}
37. dxe6 {[%clk 0:00:33]}  Bxe6 {[%clk 0:06:47]} 38. Qxb6 {[%clk 0:00:33]}  axb6 {[%clk 0:07:15]} 39. c7 {[%clk 0:00:44]}  Rf8 {[%clk 0:05:39]}
40. Rxe6 {[%clk 0:00:36]}  fxe6 {[%clk 0:06:07]} 41. Rxe6 {[%clk 0:01:00]}  Rc8 {[%clk 0:00:42]} 42. Rxg6+ {[%clk 0:29:30]}  Kf8 {[%clk 0:30:43]}
43. Rxb6 {[%clk 0:25:40]}  Rxc7 {[%clk 0:30:54]} 44. f5 {[%clk 0:15:26]}  Rc1+ {[%clk 0:20:05]} 45. Kf2 {[%clk 0:14:39]}  Rh2+ {[%clk 0:20:07]}
46. Ke3 {[%clk 0:15:04]}  Rc3+ {[%clk 0:20:21]} 47. Ke4 {[%clk 0:15:27]}  a5 {[%clk 0:18:04]} 48. Ra6 {[%clk 0:09:30]}  Ra3 {[%clk 0:09:49]}
49. f6 {[%clk 0:03:44]}  Kf7 {[%clk 0:09:09]} 50. Bg4 {[%clk 0:02:15]}  Rxg3 {[%clk 0:08:01]} 51. Kf5 {[%clk 0:02:39]}  Rf2+ {[%clk 0:06:20]}
52. Ke4 {[%clk 0:02:24]} 1/2-1/2

[Event "2026 European Womens Championship"]
[Site "Batumi, GE"]
[Date "2026.05.29"]
[Round "5"]
[White "Efroimski, Marsel"]
[Black "Kirtadze, Anastasia"]
[Result "0-1"]
[Board "70"]
[TimeControl "5400+30"]
[WhiteFideId "2810964"]
[BlackFideId "13622714"]
[WhiteElo "2386"]
[BlackElo "2233"]
[WhiteTitle "IM"]
[BlackTitle "WIM"]
[WhiteClock "0:00:58"]
[BlackClock "0:01:02"]
[Variant "Standard"]

1. e4 {[%clk 1:28:22]}  c5 {[%clk 1:30:33]} 2. Nf3 {[%clk 1:28:48]}  e6 {[%clk 1:30:59]} 3. d4 {[%clk 1:29:08]}  cxd4 {[%clk 1:31:24]}
4. Nxd4 {[%clk 1:29:37]}  Nf6 {[%clk 1:31:47]} 5. Nc3 {[%clk 1:30:04]}  Nc6 {[%clk 1:32:13]} 6. Nxc6 {[%clk 1:30:31]}  bxc6 {[%clk 1:32:37]}
7. e5 {[%clk 1:30:57]}  Nd5 {[%clk 1:33:03]} 8. Ne4 {[%clk 1:31:22]}  Qc7 {[%clk 1:33:30]} 9. f4 {[%clk 1:31:47]}  Qb6 {[%clk 1:33:56]}
10. a3 {[%clk 1:31:54]}  f5 {[%clk 1:34:14]} 11. exf6 {[%clk 1:24:58]}  Nxf6 {[%clk 1:34:20]} 12. Nxf6+ {[%clk 1:25:22]}  gxf6 {[%clk 1:34:41]}
13. Qh5+ {[%clk 1:22:58]}  Kd8 {[%clk 1:35:07]} 14. Bd3 {[%clk 1:17:53]}  d5 {[%clk 1:27:04]} 15. Qf7 {[%clk 1:10:37]}  Be7 {[%clk 1:26:30]}
16. Qg7 {[%clk 1:08:07]}  Rf8 {[%clk 1:26:21]} 17. Qxh7 {[%clk 1:06:34]}  Bd7 {[%clk 1:20:34]} 18. Be2 {[%clk 0:56:53]}  Bc5 {[%clk 1:06:45]}
19. Qd3 {[%clk 0:53:03]}  e5 {[%clk 1:05:45]} 20. Qa6 {[%clk 0:46:58]}  Qb8 {[%clk 0:56:24]} 21. Qa5+ {[%clk 0:34:20]}  Bb6 {[%clk 0:56:03]}
22. Qd2 {[%clk 0:29:46]}  Re8 {[%clk 0:51:25]} 23. f5 {[%clk 0:29:42]}  e4 {[%clk 0:41:40]} 24. Qf4 {[%clk 0:23:50]}  Bc7 {[%clk 0:25:07]}
25. Qh6 {[%clk 0:20:49]}  Be5 {[%clk 0:25:26]} 26. c3 {[%clk 0:19:56]}  Kc7 {[%clk 0:22:07]} 27. Qh3 {[%clk 0:05:43]}  Rh8 {[%clk 0:13:05]}
28. Bh5 {[%clk 0:04:28]}  Be8 {[%clk 0:11:10]} 29. g4 {[%clk 0:04:54]}  c5 {[%clk 0:10:51]} 30. O-O {[%clk 0:03:09]}  Qb5 {[%clk 0:03:54]}
31. a4 {[%clk 0:02:45]}  Qc4 {[%clk 0:03:20]} 32. Bf4 {[%clk 0:02:31]}  Bxh5 {[%clk 0:01:50]} 33. Bxe5+ {[%clk 0:01:22]}  fxe5 {[%clk 0:02:19]}
34. gxh5 {[%clk 0:01:47]}  Rag8+ {[%clk 0:01:06]} 35. Kf2 {[%clk 0:01:45]}  Qb3 {[%clk 0:00:50]} 36. Rab1 {[%clk 0:00:58]}  Qc2+ {[%clk 0:01:02]} 0-1

[Event "2026 European Womens Championship"]
[Site "Batumi, GE"]
[Date "2026.05.29"]
[Round "5"]
[White "Ibrahimova, Sabina"]
[Black "Kulon, Klaudia"]
[Result "0-1"]
[Board "71"]
[TimeControl "5400+30"]
[WhiteFideId "13403893"]
[BlackFideId "1131044"]
[WhiteElo "2205"]
[BlackElo "2377"]
[WhiteTitle "WIM"]
[BlackTitle "IM"]
[WhiteClock "0:00:39"]
[BlackClock "0:05:37"]
[Variant "Standard"]

1. Nf3 {[%clk 1:26:30]}  d5 {[%clk 1:30:51]} 2. g3 {[%clk 1:26:19]}  c5 {[%clk 1:31:03]} 3. Bg2 {[%clk 1:24:38]}  Nf6 {[%clk 1:31:28]}
4. O-O {[%clk 1:24:20]}  g6 {[%clk 1:31:49]} 5. c4 {[%clk 1:23:40]}  d4 {[%clk 1:30:39]} 6. d3 {[%clk 1:14:55]}  Bg7 {[%clk 1:29:58]}
7. e3 {[%clk 1:06:15]}  dxe3 {[%clk 1:24:11]} 8. Bxe3 {[%clk 1:06:03]}  Ng4 {[%clk 1:21:09]} 9. Bc1 {[%clk 1:01:24]}  Nc6 {[%clk 1:20:39]}
10. Nc3 {[%clk 1:00:33]}  O-O {[%clk 1:19:02]} 11. Ne4 {[%clk 0:59:06]}  b6 {[%clk 1:15:32]} 12. h3 {[%clk 0:56:35]}  Nh6 {[%clk 1:15:38]}
13. Rb1 {[%clk 0:51:03]}  Bd7 {[%clk 1:12:12]} 14. Re1 {[%clk 0:46:39]}  Rc8 {[%clk 1:08:19]} 15. a3 {[%clk 0:42:24]}  a5 {[%clk 1:05:47]}
16. Nc3 {[%clk 0:35:39]}  Nf5 {[%clk 1:00:47]} 17. Bf4 {[%clk 0:35:01]}  h6 {[%clk 0:59:08]} 18. Nb5 {[%clk 0:33:04]}  g5 {[%clk 0:53:43]}
19. Bd2 {[%clk 0:32:05]}  Be6 {[%clk 0:51:50]} 20. Bc3 {[%clk 0:30:18]}  Qd7 {[%clk 0:51:31]} 21. Qd2 {[%clk 0:28:04]}  Nfd4 {[%clk 0:48:01]}
22. Bxd4 {[%clk 0:26:28]}  cxd4 {[%clk 0:48:24]} 23. Kh2 {[%clk 0:26:16]}  Bf5 {[%clk 0:46:37]} 24. Rbc1 {[%clk 0:20:24]}  a4 {[%clk 0:42:16]}
25. Qe2 {[%clk 0:16:43]}  Rfe8 {[%clk 0:39:13]} 26. Nd2 {[%clk 0:16:08]}  Na5 {[%clk 0:38:53]} 27. Nf3 {[%clk 0:05:14]}  Nb3 {[%clk 0:29:58]}
28. Rcd1 {[%clk 0:05:38]}  Nc5 {[%clk 0:29:23]} 29. Ng1 {[%clk 0:02:24]}  Bg6 {[%clk 0:27:59]} 30. Bd5 {[%clk 0:01:13]}  e6 {[%clk 0:27:15]}
31. Bf3 {[%clk 0:01:32]}  Re7 {[%clk 0:22:28]} 32. Bg4 {[%clk 0:01:27]}  f5 {[%clk 0:22:38]} 33. Bh5 {[%clk 0:01:53]}  Bxh5 {[%clk 0:19:43]}
34. Qxh5 {[%clk 0:02:18]}  e5 {[%clk 0:19:09]} 35. Nf3 {[%clk 0:02:22]}  Rf8 {[%clk 0:19:18]} 36. Re2 {[%clk 0:02:13]}  Re6 {[%clk 0:17:14]}
37. Rde1 {[%clk 0:01:03]}  Nxd3 {[%clk 0:15:02]} 38. Nfxd4 {[%clk 0:01:21]}  Ree8 {[%clk 0:14:46]} 39. Rd1 {[%clk 0:01:04]}  Nc5 {[%clk 0:14:14]}
40. Rde1 {[%clk 0:01:12]}  Nd3 {[%clk 0:08:17]} 41. Rd1 {[%clk 0:29:17]}  e4 {[%clk 0:27:24]} 42. Nc2 {[%clk 0:21:38]}  Rc8 {[%clk 0:21:34]}
43. Ne3 {[%clk 0:15:43]}  Rc6 {[%clk 0:21:13]} 44. Nc3 {[%clk 0:13:07]}  Qe6 {[%clk 0:17:26]} 45. Ned5 {[%clk 0:09:26]}  Ne5 {[%clk 0:17:21]}
46. Nxa4 {[%clk 0:05:30]}  Nxc4 {[%clk 0:17:13]} 47. Nac3 {[%clk 0:05:16]}  Ne5 {[%clk 0:16:28]} 48. Nb4 {[%clk 0:02:09]}  Rc5 {[%clk 0:15:28]}
49. Nc2 {[%clk 0:01:59]}  Kh7 {[%clk 0:13:53]} 50. Nd4 {[%clk 0:01:23]}  Qf6 {[%clk 0:13:53]} 51. Kg2 {[%clk 0:01:26]}  Nd3 {[%clk 0:12:49]}
52. Ne6 {[%clk 0:01:23]}  Qxe6 {[%clk 0:12:42]} 53. Rxd3 {[%clk 0:01:51]}  Qc6 {[%clk 0:12:56]} 54. Rd1 {[%clk 0:01:23]}  f4 {[%clk 0:12:24]}
55. Kh2 {[%clk 0:00:51]}  e3 {[%clk 0:12:37]} 56. fxe3 {[%clk 0:00:40]}  fxg3+ {[%clk 0:13:00]} 57. Kg1 {[%clk 0:00:58]}  Rcf5 {[%clk 0:13:01]}
58. Rg2 {[%clk 0:00:51]}  Rf2 {[%clk 0:07:57]} 59. Rxg3 {[%clk 0:01:17]}  Be5 {[%clk 0:08:15]} 60. Qg4 {[%clk 0:00:43]}  Bxg3 {[%clk 0:08:11]}
61. Qxg3 {[%clk 0:00:59]}  Rxb2 {[%clk 0:07:49]} 62. Nd5 {[%clk 0:00:36]}  Rd2 {[%clk 0:05:55]} 63. Qg4 {[%clk 0:00:36]}  Qxd5 {[%clk 0:05:06]}
64. Rxd2 {[%clk 0:00:52]}  Qxd2 {[%clk 0:05:33]} 65. Qe4+ {[%clk 0:01:14]}  Kg7 {[%clk 0:05:51]} 66. Qe5+ {[%clk 0:00:40]}  Rf6 {[%clk 0:04:46]}
67. Qe7+ {[%clk 0:00:52]}  Kg6 {[%clk 0:04:45]} 68. Qe4+ {[%clk 0:00:36]}  Kf7 {[%clk 0:05:08]} 69. Qb7+ {[%clk 0:00:44]}  Ke8 {[%clk 0:05:14]}
70. Qb8+ {[%clk 0:00:39]}  Qd8 {[%clk 0:05:37]} 0-1

[Event "2026 European Womens Championship"]
[Site "Batumi, GE"]
[Date "2026.05.29"]
[Round "5"]
[White "Antova, Gabriela"]
[Black "Beydullayeva, Govhar"]
[Result "1/2-1/2"]
[Board "72"]
[TimeControl "5400+30"]
[WhiteFideId "2915235"]
[BlackFideId "13413015"]
[WhiteElo "2203"]
[BlackElo "2368"]
[WhiteTitle "WGM"]
[BlackTitle "WGM"]
[WhiteClock "0:08:41"]
[BlackClock "0:19:52"]
[Variant "Standard"]

1. e4 {[%clk 1:30:52]}  c5 {[%clk 1:30:53]} 2. Nf3 {[%clk 1:31:13]}  d6 {[%clk 1:31:03]} 3. d4 {[%clk 1:31:32]}  cxd4 {[%clk 1:31:30]}
4. Nxd4 {[%clk 1:31:56]}  Nf6 {[%clk 1:31:57]} 5. Nc3 {[%clk 1:32:18]}  a6 {[%clk 1:32:24]} 6. Rg1 {[%clk 1:32:27]}  Nc6 {[%clk 1:32:41]}
7. g4 {[%clk 1:31:58]}  Nxd4 {[%clk 1:27:16]} 8. Qxd4 {[%clk 1:32:15]}  e5 {[%clk 1:14:24]} 9. Qa4+ {[%clk 1:31:28]}  Bd7 {[%clk 1:12:27]}
10. Qb3 {[%clk 1:31:38]}  b5 {[%clk 1:05:56]} 11. g5 {[%clk 1:30:51]}  Be6 {[%clk 1:05:22]} 12. gxf6 {[%clk 1:30:51]}  Bxb3 {[%clk 1:05:38]}
13. axb3 {[%clk 1:31:14]}  gxf6 {[%clk 0:50:50]} 14. Nd5 {[%clk 1:27:14]}  Kd7 {[%clk 0:46:25]} 15. Bxb5+ {[%clk 1:24:19]}  axb5 {[%clk 0:46:45]}
16. Rxa8 {[%clk 1:24:42]}  Qxa8 {[%clk 0:47:14]} 17. Nb6+ {[%clk 1:25:02]}  Kc6 {[%clk 0:47:41]} 18. Nxa8 {[%clk 1:25:25]}  Kb7 {[%clk 0:48:06]}
19. Be3 {[%clk 1:18:39]}  Kxa8 {[%clk 0:48:31]} 20. Ke2 {[%clk 1:18:33]}  f5 {[%clk 0:45:28]} 21. Ra1+ {[%clk 1:04:08]}  Kb7 {[%clk 0:42:40]}
22. exf5 {[%clk 1:01:44]}  d5 {[%clk 0:42:05]} 23. c3 {[%clk 0:59:44]}  b4 {[%clk 0:39:24]} 24. Ra7+ {[%clk 0:58:56]}  Kc6 {[%clk 0:39:49]}
25. Rxf7 {[%clk 0:58:27]}  Bd6 {[%clk 0:40:11]} 26. Bh6 {[%clk 0:50:00]}  Ra8 {[%clk 0:38:54]} 27. cxb4 {[%clk 0:29:41]}  Ra2 {[%clk 0:32:42]}
28. Bc1 {[%clk 0:26:30]}  Ra1 {[%clk 0:33:05]} 29. Bd2 {[%clk 0:25:10]}  Rb1 {[%clk 0:30:26]} 30. b5+ {[%clk 0:17:53]}  Kxb5 {[%clk 0:30:52]}
31. f6 {[%clk 0:17:16]}  Rxb2 {[%clk 0:29:14]} 32. Rxh7 {[%clk 0:16:53]}  Kc6 {[%clk 0:28:16]} 33. Rh4 {[%clk 0:13:45]}  d4 {[%clk 0:19:52]}
34. Kd1 {[%clk 0:08:41]} 1/2-1/2

[Event "2026 European Womens Championship"]
[Site "Batumi, GE"]
[Date "2026.05.29"]
[Round "5"]
[White "Mkrtchian, Lilit"]
[Black "Orian, Noga"]
[Result "1/2-1/2"]
[Board "73"]
[TimeControl "5400+30"]
[WhiteFideId "13300601"]
[BlackFideId "2836475"]
[WhiteElo "2366"]
[BlackElo "2231"]
[WhiteTitle "IM"]
[BlackTitle "WIM"]
[WhiteClock "0:14:27"]
[BlackClock "0:24:58"]
[Variant "Standard"]

1. c4 {[%clk 1:30:37]}  e5 {[%clk 1:30:54]} 2. Nc3 {[%clk 1:30:41]}  Nf6 {[%clk 1:31:17]} 3. e3 {[%clk 1:30:46]}  c5 {[%clk 1:27:24]}
4. Nf3 {[%clk 1:22:13]}  Nc6 {[%clk 1:26:32]} 5. d4 {[%clk 1:22:21]}  cxd4 {[%clk 1:20:32]} 6. exd4 {[%clk 1:22:46]}  exd4 {[%clk 1:20:58]}
7. Nxd4 {[%clk 1:22:39]}  Bb4 {[%clk 1:20:36]} 8. Ndb5 {[%clk 1:07:46]}  O-O {[%clk 1:13:52]} 9. a3 {[%clk 1:07:49]}  Re8+ {[%clk 1:09:42]}
10. Be2 {[%clk 1:07:44]}  Bxc3+ {[%clk 1:09:50]} 11. Nxc3 {[%clk 1:05:36]}  d5 {[%clk 1:09:12]} 12. cxd5 {[%clk 1:03:37]}  Ne7 {[%clk 1:08:50]}
13. d6 {[%clk 0:46:21]}  Nf5 {[%clk 1:09:12]} 14. O-O {[%clk 0:45:39]}  Qxd6 {[%clk 1:05:28]} 15. Qxd6 {[%clk 0:43:17]}  Nxd6 {[%clk 1:05:56]}
16. Rd1 {[%clk 0:43:25]}  Re6 {[%clk 0:49:14]} 17. Bf4 {[%clk 0:40:47]}  Nfe8 {[%clk 0:48:46]} 18. Bxd6 {[%clk 0:26:22]}  Nxd6 {[%clk 0:48:10]}
19. Bc4 {[%clk 0:26:25]}  Rg6 {[%clk 0:38:29]} 20. Nb5 {[%clk 0:26:40]}  Bh3 {[%clk 0:37:22]} 21. Nxd6 {[%clk 0:26:51]}  Rxg2+ {[%clk 0:37:39]}
22. Kh1 {[%clk 0:26:08]}  Rxf2 {[%clk 0:35:26]} 23. Nxf7 {[%clk 0:13:05]}  Rxf7 {[%clk 0:32:49]} 24. Rac1 {[%clk 0:13:13]}  Re8 {[%clk 0:31:29]}
25. Re1 {[%clk 0:13:30]}  Rxe1+ {[%clk 0:30:26]} 26. Rxe1 {[%clk 0:13:57]}  Kf8 {[%clk 0:30:39]} 27. Bxf7 {[%clk 0:14:17]}  Kxf7 {[%clk 0:31:07]}
28. Rc1 {[%clk 0:11:01]}  Be6 {[%clk 0:31:01]} 29. Rc7+ {[%clk 0:11:24]}  Kf6 {[%clk 0:31:27]} 30. Kg1 {[%clk 0:11:40]}  Bd5 {[%clk 0:31:50]}
31. Kf2 {[%clk 0:12:08]}  Bc6 {[%clk 0:30:08]} 32. Ke3 {[%clk 0:12:26]}  h5 {[%clk 0:29:35]} 33. b4 {[%clk 0:11:52]}  a6 {[%clk 0:29:41]}
34. Rc8 {[%clk 0:08:58]}  g5 {[%clk 0:28:34]} 35. Rf8+ {[%clk 0:09:05]}  Kg6 {[%clk 0:27:57]} 36. Kd4 {[%clk 0:03:14]}  g4 {[%clk 0:24:04]}
37. Ke5 {[%clk 0:00:37]}  Kg5 {[%clk 0:24:18]} 38. Rf5 {[%clk 0:00:41]}  Kh4 {[%clk 0:23:22]} 39. Kf6 {[%clk 0:01:06]}  Be4 {[%clk 0:05:35]}
40. Re5 {[%clk 0:01:22]}  Bf3 {[%clk 0:05:13]} 41. Rg5 {[%clk 0:00:39]}  Be4 {[%clk 0:02:08]} 42. Re5 {[%clk 0:16:50]}  Bf3 {[%clk 0:31:28]}
43. Rf5 {[%clk 0:15:59]}  Be4 {[%clk 0:28:08]} 44. Re5 {[%clk 0:14:27]}  Bf3 {[%clk 0:24:58]} 1/2-1/2